bitfinex/quotes_ETHUSD_20241105
["timestamp","ask_amount","ask_price","bid_price","bid_amount"]
[1730787232283,3.0,2429.6,2429.5,0.88629811]
[1730787232492,4.9203,2430.2,2429.5,1.39347114]
[1730787232659,7.14067276,2430.1,2429.7,4.61965]
[1730787232843,4.11523,2430.0,2429.8,0.31696203]
[1730787233049,4.11523,2430.0,2429.7,2.21317212]
[1730787233283,8.23054,2430.0,2429.9,0.06532386]
[1730787233486,4.11523,2430.0,2429.9,1.70917212]
[1730787233794,4.11523,2430.0,2429.9,1.77449598]
[1730787235545,4.11523,2430.0,2429.9,0.06532386]
[1730787235745,4.11523,2430.0,2429.8,1.70917212]
[1730787235974,4.11544,2429.9,2429.8,1.70917212]
[1730787236474,4.11565,2429.8,2429.5,0.504]
[1730787236680,4.11565,2429.8,2429.7,1.70917212]
[1730787237164,4.1159,2429.6,2429.5,0.504]
[1730787237367,4.1159,2429.6,2429.5,1.70917212]
[1730787237573,4.11581,2429.7,2429.5,2.02593956]
[1730787237781,4.11581,2429.7,2429.5,1.70917212]
[1730787238299,4.1159,2429.6,2429.5,1.70917212]
[1730787238595,4.1159,2429.6,2429.4,0.0604582]
[1730787238795,4.1159,2429.6,2429.5,1.70917212]
[1730787239181,4.1159,2429.6,2429.5,2.0259514]
[1730787239386,4.1159,2429.6,2429.5,0.31677928]
[1730787239554,4.11607,2429.5,2429.4,0.0604582]
[1730787239983,4.11607,2429.5,2429.4,1.76963032]
[1730787240656,4.11607,2429.5,2429.4,2.08640723]
[1730787241273,4.11607,2429.5,2429.4,1.76963032]
[1730787242786,4.11607,2429.5,2429.4,1.83446411]
[1730787243484,4.11607,2429.5,2429.4,1.76963032]
[1730787245602,4.11607,2429.5,2429.4,1.83446411]
[1730787246497,8.830347,2429.5,2429.4,0.12529199]
[1730787247006,8.830347,2429.5,2429.4,0.0604582]
[1730787248902,8.018947,2429.5,2429.4,1.76963032]
[1730787249198,8.018947,2429.5,2429.4,1.83446411]
[1730787249406,7.11607,2429.5,2429.4,1.83446411]
[1730787249812,4.1159,2429.6,2429.4,2.33846411]
[1730787250893,8.23189,2429.6,2429.4,2.33846411]
[1730787251067,7.1157,2429.8,2429.4,2.33846411]
[1730787251265,3.0,2429.6,2429.4,0.62929199]
[1730787251468,7.11593,2429.6,2429.5,1.70917212]
[1730787251907,7.11593,2429.6,2429.5,1.77435305]
[1730787254573,3.0,2429.6,2429.5,1.77435305]
[1730787254800,3.0,2429.8,2429.5,2.82835305]
[1730787255017,3.0,2429.6,2429.5,1.11918093]
[1730787255179,3.0,2429.6,2429.5,1.43648419]
[1730787256482,3.0,2429.6,2429.5,1.11918093]
[1730787256682,3.0,2429.6,2429.5,1.4364965]
[1730787257021,4.11552,2429.9,2429.6,0.55]
[1730787257320,4.11522,2430.0,2429.8,1.70917212]
[1730787257610,4.11522,2430.0,2429.9,0.06518093]
[1730787258385,3.0,2429.9,2429.8,1.70917212]
[1730787258585,7.11539,2429.9,2429.8,1.70917212]
[1730787258791,7.11539,2429.9,2429.8,2.25917212]
[1730787259503,4.11539,2429.9,2429.8,2.25917212]
[1730787259710,7.11539,2429.9,2429.8,2.25917212]
[1730787261736,7.11539,2429.9,2429.8,2.32413868]
[1730787263992,7.11539,2429.9,2429.8,0.06496656]
[1730787264295,4.11556,2429.8,2429.7,1.70917212]
[1730787276647,7.93836,2429.8,2429.7,0.0646092]
[1730787277146,7.93887,2429.5,2429.4,0.0604582]
[1730787277354,7.93887,2429.5,2429.4,1.76963032]
[1730787277355,7.11607,2429.5,2429.4,1.76963032]
[1730787277851,7.11607,2429.5,2429.4,1.82986465]
[1730787278229,7.11607,2429.5,2429.4,2.37986465]
[1730787279648,8.23194,2429.6,2429.4,2.69718576]
[1730787279849,8.23194,2429.6,2429.4,2.37986465]
[1730787279850,4.11607,2429.5,2429.4,2.37986465]
[1730787280147,4.11607,2429.5,2429.4,2.69717746]
[1730787280354,4.11593,2429.6,2429.5,0.55]
[1730787280512,7.11593,2429.6,2429.5,0.55]
[1730787280909,7.11593,2429.6,2429.5,0.61023433]
[1730787282252,7.11593,2429.6,2429.5,0.92752156]
[1730787283012,3.0,2429.6,2429.5,0.92752156]
[1730787283214,7.1159,2429.6,2429.5,0.92752156]
[1730787283453,3.0,2429.6,2429.5,0.92753592]
[1730787283826,3.0,2429.6,2429.5,0.92753134]
[1730787284035,7.1159,2429.6,2429.5,0.92753134]
[1730787284618,4.11573,2429.7,2429.5,0.92753134]
[1730787284855,4.11563,2429.8,2429.7,1.054]
[1730787285032,4.11563,2429.8,2429.7,3.08044928]
[1730787285232,4.11563,2429.8,2429.7,3.08043823]
[1730787285442,4.11563,2429.8,2429.7,3.14067256]
[1730787286355,4.11563,2429.8,2429.7,2.63667256]
[1730787286555,4.938744,2429.8,2429.7,0.37750044]
[1730787286714,4.938744,2429.8,2429.7,0.06023433]
[1730787286919,4.938744,2429.8,2429.7,0.61023433]
[1730787288323,4.11563,2429.8,2429.7,0.61023433]
[1730787294170,4.11563,2429.8,2429.7,0.92751321]
[1730787294545,4.11563,2429.8,2429.7,0.61023433]
[1730787294772,4.11563,2429.8,2429.7,0.92750261]
[1730787297473,4.93151,2429.9,2429.7,0.92750261]
[1730787297474,3.0,2429.9,2429.8,0.55]
[1730787297771,3.0,2430.0,2429.8,0.55]
[1730787298072,4.11514,2430.1,2430.0,0.55]
[1730787298276,7.11514,2430.1,2430.0,0.55]
[1730787298501,7.11514,2430.1,2430.0,0.61037713]
[1730787298930,3.0,2430.1,2430.0,0.61037713]
[1730787299135,7.11492,2430.2,2430.0,0.61037713]
[1730787299380,7.11492,2430.2,2430.1,1.70917212]
[1730787299575,7.11492,2430.2,2430.1,1.76930447]
[1730787299751,7.11492,2430.2,2430.1,2.31930447]
[1730787300486,7.87082,2430.2,2430.1,0.06013235]
[1730787300962,4.11573,2429.7,2429.6,1.70917212]
[1730787301273,4.11573,2429.7,2429.6,2.08640254]
[1730787301973,4.11573,2429.7,2429.6,2.63640254]
[1730787302179,4.11573,2429.7,2429.6,2.31922289]
[1730787302360,4.11573,2429.7,2429.6,2.63627851]
[1730787302765,4.11573,2429.7,2429.6,2.08627851]
[1730787302967,5.016991,2429.7,2429.6,0.37710639]
[1730787303145,8.850191,2429.7,2429.6,0.06005077]
[1730787303480,4.11607,2429.5,2429.4,0.0604582]
[1730787303774,4.11607,2429.5,2429.4,0.37756737]
[1730787303954,7.94927,2429.5,2429.4,0.37756737]
[1730787304144,7.94927,2429.5,2429.4,0.0604582]
[1730787304340,10.42327,2429.5,2429.4,0.0604582]
[1730787305680,7.94927,2429.5,2429.4,0.0604582]
[1730787306886,7.11607,2429.5,2429.4,0.0604582]
[1730787307705,9.07687752,2429.5,2429.4,0.0604582]
[1730787321704,9.07687752,2429.5,2429.4,0.6104582]
[1730787322010,9.87717752,2429.5,2429.4,0.6104582]
[1730787322675,9.87717752,2429.5,2429.4,0.0604582]
[1730787325686,12.35117752,2429.5,2429.4,0.0604582]
[1730787325888,9.87717752,2429.5,2429.4,0.0604582]
[1730787327124,9.87717752,2429.5,2429.4,8.2e-06]
[1730787327475,12.35117752,2429.5,2429.4,8.2e-06]
[1730787327676,14.06034964,2429.5,2429.4,8.2e-06]
[1730787328725,16.64941533,2429.5,2429.4,8.2e-06]
[1730787329342,14.06034964,2429.5,2429.4,8.2e-06]
[1730787330204,14.51971082,2429.5,2429.4,8.2e-06]
[1730787331204,14.94954021,2429.5,2429.4,8.2e-06]
[1730787331403,14.49017903,2429.5,2429.4,8.2e-06]
[1730787334033,14.61438564,2429.5,2429.4,8.2e-06]
[1730787334393,17.2006451,2429.5,2429.4,8.2e-06]
[1730787335530,14.61438564,2429.5,2429.4,8.2e-06]
[1730787338747,15.11350301,2429.5,2429.4,8.2e-06]
[1730787340659,4.11759,2428.6,2428.5,0.55]
[1730787340876,4.11759,2428.6,2428.5,0.61023002]
[1730787340877,7.11759,2428.6,2428.5,0.61023002]
[1730787341558,7.11759,2428.6,2428.5,0.06023002]
[1730787341966,7.11776,2428.5,2428.4,1.054]
[1730787342384,3.0,2428.5,2428.4,1.054]
[1730787342586,3.0,2428.5,2428.4,1.11423002]
[1730787342763,7.11776,2428.5,2428.4,1.11423002]
[1730787349686,7.11776,2428.5,2428.4,0.61023002]
[1730787350016,7.11776,2428.5,2428.4,0.55]
[1730787350202,7.11796,2428.4,2428.3,0.55]
[1730787350975,7.11796,2428.4,2428.3,0.61083179]
[1730787351207,7.11796,2428.4,2428.3,0.55]
[1730787355152,4.1181,2428.3,2428.2,0.0604582]
[1730787355428,7.9086,2428.3,2428.2,0.6104582]
[1730787355596,7.9086,2428.3,2428.2,0.0604582]
[1730787355793,10.3907795,2428.3,2428.2,0.0604582]
[1730787361528,12.8647795,2428.3,2428.2,0.0604582]
[1730787366148,10.3907795,2428.3,2428.2,0.0604582]
[1730787366362,10.4146795,2428.3,2428.2,0.0604582]
[1730787368696,7.1181,2428.3,2428.2,0.6104582]
[1730787369656,7.1181,2428.3,2428.2,0.67082514]
[1730787370901,7.1181,2428.3,2428.2,0.6104582]
[1730787371801,7.1181,2428.3,2428.2,0.67082514]
[1730787372255,0.8141,2428.5,2428.2,1.17482514]
[1730787372256,4.1178,2428.5,2428.2,1.17482514]
[1730787372459,4.11793,2428.4,2428.3,2.25917212]
[1730787372966,4.11793,2428.4,2428.3,2.31953906]
[1730787373166,4.1178,2428.5,2428.3,2.31953906]
[1730787373373,8.2357,2428.5,2428.3,2.31953906]
[1730787373602,4.1178,2428.5,2428.3,2.31953906]
[1730787374602,8.23567,2428.5,2428.3,2.31953906]
[1730787374802,3.0,2428.4,2428.3,2.31953906]
[1730787374969,7.11793,2428.4,2428.3,2.31953906]
[1730787376603,3.0,2428.6,2428.5,0.55]
[1730787376819,7.11759,2428.6,2428.5,2.25917212]
[1730787376977,7.11759,2428.6,2428.5,2.31906959]
[1730787377895,3.0,2428.8,2428.5,2.31906959]
[1730787378094,7.11726,2428.8,2428.5,2.31906959]
[1730787378511,4.11746,2428.7,2428.5,2.31906959]
[1730787378894,11.23466,2428.8,2428.5,2.31906959]
[1730787379093,7.11726,2428.8,2428.5,2.31906959]
[1730787379304,7.11726,2428.8,2428.5,2.25917212]
[1730787379472,7.11726,2428.8,2428.7,0.55]
[1730787380011,7.11748,2428.7,2428.6,0.55]
[1730787380511,7.11748,2428.7,2428.6,0.60965261]
[1730787380699,3.0,2428.7,2428.6,1.11365261]
[1730787381114,4.11702,2429.0,2428.8,0.55]
[1730787381422,4.11709,2428.9,2428.8,0.55]
[1730787381617,6.70780444,2428.9,2428.8,0.55]
[1730787381780,4.11709,2428.9,2428.8,0.60864242]
[1730787382119,4.11709,2428.9,2428.8,0.55]
[1730787382283,3.0,2428.9,2428.8,0.60864242]
[1730787382479,7.11709,2428.9,2428.8,0.60864242]
[1730787382786,4.11735,2428.8,2428.6,0.55]
[1730787383284,7.11735,2428.8,2428.7,0.60846903]
[1730787383595,7.88875,2428.8,2428.7,0.05846903]
[1730787383918,3.0,2428.7,2428.3,1.70917212]
[1730787384110,7.11793,2428.4,2428.3,1.70917212]
[1730787385081,7.11793,2428.4,2428.3,2.25917212]
[1730787385489,7.11793,2428.4,2428.3,0.55]
[1730787385695,8.324702,2428.4,2428.3,0.55]
[1730787387521,7.1181,2428.3,2428.2,0.0604582]
[1730787388637,7.8896,2428.3,2428.2,0.0604582]
[1730787388841,7.8896,2428.3,2428.2,0.6104582]
[1730787393542,7.1181,2428.3,2428.2,0.6104582]
[1730787394241,7.1181,2428.3,2428.2,0.66990662]
[1730787394441,3.02316277,2428.8,2428.3,0.504]
[1730787394655,4.11776,2428.5,2428.4,2.25917212]
[1730787394810,4.11776,2428.5,2428.4,0.55]
[1730787395143,4.11776,2428.5,2428.4,0.60944842]
[1730787395851,7.11776,2428.5,2428.4,0.60944842]
[1730787396348,7.11776,2428.5,2428.4,0.55]
[1730787400647,7.11776,2428.5,2428.4,0.60944842]
[1730787400949,7.11796,2428.4,2428.3,0.55]
[1730787401117,7.11796,2428.4,2428.2,1.76963032]
[1730787401118,4.1181,2428.3,2428.2,0.0604582]
[1730787401338,7.1181,2428.3,2428.2,0.0604582]
[1730787401632,7.1181,2428.3,2428.2,0.11990662]
[1730787401940,8.79709874,2428.3,2428.2,0.11990662]
[1730787402324,8.79709874,2428.3,2428.2,0.66990662]
[1730787402524,8.79709874,2428.3,2428.2,0.6104582]
[1730787402737,8.79709874,2428.3,2428.2,0.66961072]
[1730787403460,7.1181,2428.3,2428.2,2.37878284]
[1730787404454,7.1181,2428.3,2428.2,0.66961072]
[1730787405863,7.1181,2428.3,2428.2,0.56961072]
[1730787407268,4.11844,2428.1,2428.0,1.70917212]
[1730787407454,7.11844,2428.1,2428.0,1.70917212]
[1730787407769,7.11844,2428.1,2428.0,2.31832464]
[1730787408638,8.242114,2428.1,2428.0,2.31832464]
[1730787408840,8.242114,2428.1,2428.0,0.60915252]
[1730787409061,8.242114,2428.1,2428.0,0.05915252]
[1730787409567,4.11878,2427.9,2427.8,1.70917212]
[1730787409772,4.11878,2427.9,2427.8,2.02925758]
[1730787410265,3.0,2428.0,2427.9,0.55]
[1730787410485,3.0,2428.0,2427.9,2.57928328]
[1730787410825,7.11861,2428.0,2427.9,2.57928328]
[1730787411782,7.11861,2428.0,2427.9,2.63866029]
[1730787413654,3.0,2428.0,2427.9,2.63866029]
[1730787413854,7.11861,2428.0,2427.9,2.63896332]
[1730787414876,3.0,2428.0,2427.9,2.63896332]
[1730787416380,7.11861,2428.0,2427.9,2.63896332]
[1730787416853,3.0,2428.0,2427.9,2.63896332]
[1730787417439,3.0,2428.0,2427.9,2.63900025]
[1730787417641,3.0,2428.3,2427.9,3.14300025]
[1730787417871,7.11821,2428.3,2428.2,0.55]
[1730787418040,8.46667274,2428.3,2428.2,0.55]
[1730787418243,8.46667274,2428.3,2428.2,0.60988591]
[1730787421291,8.14655145,2428.5,2428.2,3.14481107]
[1730787421506,6.71048404,2428.5,2428.3,0.87170591]
[1730787421793,6.71048404,2428.5,2428.3,0.55]
[1730787422298,6.71048404,2428.5,2428.4,0.60957977]
[1730787422587,3.0,2428.4,2428.3,0.55]
[1730787422787,3.0,2428.4,2428.3,0.87163301]
[1730787422993,7.11793,2428.4,2428.3,0.93121278]
[1730787423557,7.11793,2428.4,2428.3,0.60957977]
[1730787423757,7.11793,2428.4,2428.3,0.93119905]
[1730787427413,7.11793,2428.4,2428.3,0.9311562]
[1730787427771,7.11793,2428.4,2428.3,0.9311668]
[1730787428611,7.11778,2428.5,2428.3,0.9311668]
[1730787428772,7.11778,2428.5,2428.3,0.60957977]
[1730787429904,4.11793,2428.4,2428.3,0.60957977]
[1730787430106,7.11793,2428.4,2428.3,0.60957977]
[1730787430474,3.0,2428.4,2428.3,0.55]
[1730787430707,3.0,2428.4,2428.3,0.60922263]
[1730787431386,7.11793,2428.4,2428.3,0.60922263]
[1730787431582,3.0,2428.4,2428.3,0.60922263]
[1730787432469,3.0,2428.4,2428.3,0.93078335]
[1730787432669,0.42990172,2429.0,2428.6,0.504]
[1730787432972,4.54682172,2429.0,2428.9,2.25917212]
[1730787433173,5.06576617,2429.0,2428.9,2.31804786]
[1730787433977,8.06576617,2429.0,2428.9,2.31804786]
[1730787434311,4.11684,2429.1,2429.0,0.55]
[1730787434815,4.11684,2429.1,2429.0,0.60887574]
[1730787435303,7.11684,2429.1,2429.0,0.60887574]
[1730787436174,7.11675,2429.1,2429.0,0.60887574]
[1730787436609,3.0,2429.1,2429.0,0.60887574]
[1730787437255,7.11675,2429.1,2429.0,0.60887574]
[1730787439410,3.0,2429.1,2429.0,0.60887574]
[1730787440279,7.11675,2429.1,2429.0,0.60887574]
[1730787440591,3.0,2429.1,2429.0,0.60887574]
[1730787448123,3.0,2429.2,2429.0,0.60887574]
[1730787448321,3.0,2429.2,2429.1,2.25917212]
[1730787448527,7.11658,2429.2,2429.1,2.25917212]
[1730787448740,7.11658,2429.2,2429.1,2.31694633]
[1730787451505,4.11652,2429.3,2429.2,0.55]
[1730787452204,4.11652,2429.3,2429.2,0.60777421]
[1730787452656,7.11652,2429.3,2429.2,0.60777421]
[1730787454918,8.316978,2429.3,2429.2,0.60777421]
[1730787465389,8.316978,2429.3,2429.2,0.92959702]
[1730787465591,7.11652,2429.3,2429.2,0.92959702]
[1730787467096,7.11652,2429.3,2429.2,0.60777421]
[1730787467256,7.11652,2429.3,2429.2,0.92958787]
[1730787470280,7.11652,2429.3,2429.2,0.60777421]
[1730787470692,7.86912,2429.3,2429.2,0.60777421]
[1730787470874,9.067658,2429.3,2429.2,0.60777421]
[1730787471074,9.067658,2429.3,2429.2,0.55]
[1730787476749,4.11759,2428.6,2428.5,0.504]
[1730787476951,7.11759,2428.6,2428.5,0.83664563]
[1730787477250,7.11759,2428.6,2428.5,0.37976196]
[1730787478251,7.11759,2428.6,2428.5,2.63893408]
[1730787479351,7.11759,2428.6,2428.5,2.31715027]
[1730787481171,7.11759,2428.6,2428.5,2.63861671]
[1730787481316,7.11759,2428.6,2428.5,2.31715027]
[1730787481730,7.11759,2428.6,2428.5,2.63854932]
[1730787482793,7.11759,2428.6,2428.5,2.31715027]
[1730787483779,7.11759,2428.6,2428.5,2.63844094]
[1730787484494,7.11759,2428.6,2428.5,2.31715027]
[1730787484662,7.11759,2428.6,2428.5,2.63841156]
[1730787484865,7.11759,2428.6,2428.5,2.31715027]
[1730787488370,7.11743,2428.7,2428.5,2.63830795]
[1730787488569,7.11743,2428.7,2428.6,0.55]
[1730787488807,7.11743,2428.7,2428.6,0.6084269]
[1730787489401,7.11743,2428.7,2428.6,1.1124269]
[1730787490226,3.0,2428.7,2428.6,1.43354438]
[1730787490422,4.11742,2428.7,2428.6,1.43354438]
[1730787490621,7.11742,2428.7,2428.6,1.1124269]
[1730787493025,7.11742,2428.7,2428.6,0.6084269]
[1730787494107,8.321871,2428.7,2428.6,0.6084269]
[1730787494535,7.11778,2428.5,2428.4,0.55]
[1730787494685,7.11778,2428.5,2428.4,0.87128566]
[1730787496734,7.1176,2428.6,2428.4,0.55]
[1730787496937,7.1176,2428.6,2428.5,2.58050866]
[1730787501671,7.1176,2428.6,2428.5,2.63883356]
[1730787502168,7.11743,2428.7,2428.6,0.55]
[1730787502466,7.11743,2428.7,2428.6,0.87133654]
[1730787502668,7.11743,2428.7,2428.6,0.92966144]
[1730787503859,3.0,2428.8,2428.6,1.44420566]
[1730787504069,0.42989659,2429.4,2428.8,1.054]
[1730787504238,0.42989659,2429.4,2429.3,0.55]
[1730787504440,4.11617,2429.5,2429.3,1.054]
[1730787504653,4.11617,2429.5,2429.4,2.31749702]
[1730787504850,4.11596,2429.6,2429.5,0.55]
[1730787505088,4.11596,2429.6,2429.5,0.6083249]
[1730787505662,4.11575,2429.7,2429.5,0.6083249]
[1730787505829,4.11575,2429.7,2429.6,2.25917212]
[1730787506033,4.11575,2429.7,2429.6,2.31555286]
[1730787507338,7.11575,2429.7,2429.6,2.31555286]
[1730787511146,7.11575,2429.7,2429.6,0.60638074]
[1730787511457,8.238885,2429.7,2429.6,0.60638074]
[1730787511675,7.11575,2429.7,2429.6,0.60638074]
[1730787512811,7.87175,2429.7,2429.6,0.60638074]
[1730787513189,7.87175,2429.7,2429.6,0.55]
[1730787520935,4.11711,2428.9,2428.7,0.51237756]
[1730787521101,4.11755,2428.7,2428.6,1.70917212]
[1730787521526,4.11725,2428.8,2428.6,0.0414477]
[1730787521830,4.11725,2428.8,2428.4,1.70917212]
[1730787521831,7.11742,2428.7,2428.4,1.70917212]
[1730787521996,4.11761,2428.6,2428.5,0.0414477]
[1730787522202,4.11761,2428.6,2428.5,1.75061982]
[1730787522420,4.11761,2428.6,2428.5,2.30061982]
[1730787522811,4.11761,2428.6,2428.5,0.0414477]
[1730787523015,4.11761,2428.6,2428.4,1.70917212]
[1730787523215,4.11776,2428.5,2428.4,1.70917212]
[1730787523991,4.11793,2428.4,2428.3,2.21317212]
[1730787524318,4.11793,2428.4,2428.3,2.76317212]
[1730787525047,4.11793,2428.4,2428.3,1.054]
[1730787525329,11.23564,2428.5,2428.4,0.55]
[1730787526726,7.11779,2428.5,2428.4,0.55]
[1730787528140,7.11776,2428.5,2428.4,0.55]
[1730787528798,3.0,2428.5,2428.4,0.55]
[1730787529023,7.11776,2428.5,2428.4,0.55]
[1730787531872,7.11776,2428.5,2428.4,0.5920899]
[1730787537670,7.41776,2428.5,2428.4,0.5920899]
[1730787544339,8.653216,2428.5,2428.4,0.0420899]
[1730787544542,9.433616,2428.5,2428.4,0.0420899]
[1730787544768,7.11813,2428.3,2428.0,0.504]
[1730787544975,7.11813,2428.3,2428.1,0.32117818]
[1730787545133,7.11813,2428.3,2428.2,0.32117818]
[1730787545566,7.11813,2428.3,2428.2,0.36466519]
[1730787545753,7.11813,2428.3,2428.2,2.62383731]
[1730787545938,3.0,2428.4,2428.3,1.054]
[1730787546137,3.0,2428.4,2428.3,1.37517818]
[1730787546374,3.0,2428.4,2428.3,0.32117818]
[1730787546375,7.89833,2428.4,2428.3,0.32117818]
[1730787546578,7.89833,2428.4,2428.3,0.04353803]
[1730787547061,4.11827,2428.2,2428.1,1.70917212]
[1730787547376,4.11827,2428.2,2428.1,2.03056577]
[1730787547671,4.11827,2428.2,2428.1,2.58056577]
[1730787548455,4.11827,2428.2,2428.1,2.58065102]
[1730787550240,4.11827,2428.2,2428.1,3.09551325]
[1730787551779,4.11827,2428.2,2428.1,1.38662077]
[1730787551944,4.11827,2428.2,2428.1,0.32177425]
[1730787551945,8.319949,2428.2,2428.1,0.32177425]
[1730787553339,7.11827,2428.2,2428.1,2.58094637]
[1730787558501,7.11827,2428.2,2428.1,0.87177425]
[1730787558803,7.87937,2428.2,2428.1,0.87177425]
[1730787559106,7.87937,2428.2,2428.1,0.55]
[1730787559394,4.11864,2428.0,2427.9,0.55]
[1730787559598,7.11864,2428.0,2427.9,0.32155628]
[1730787559759,7.89424,2428.0,2427.9,0.04398697]
[1730787559960,4.11895,2427.8,2427.7,1.70917212]
[1730787560165,4.11895,2427.8,2427.7,2.0307431]
[1730787560373,4.11895,2427.8,2427.7,2.07473007]
[1730787560574,8.73215,2427.8,2427.7,2.07473007]
[1730787560788,8.73215,2427.8,2427.7,0.36555795]
[1730787561202,8.73215,2427.8,2427.7,0.91555795]
[1730787561415,7.11895,2427.8,2427.7,0.91555795]
[1730787562723,7.11895,2427.8,2427.7,0.59398697]
[1730787565312,7.11895,2427.8,2427.7,2.30315909]
[1730787565508,3.0,2428.0,2427.8,0.55]
[1730787565719,7.11861,2428.0,2427.9,2.25917212]
[1730787565915,7.11861,2428.0,2427.9,2.30315909]
[1730787566087,7.11861,2428.0,2427.9,0.59398697]
[1730787566288,7.11861,2428.0,2427.9,0.55]
[1730787567108,7.11861,2428.0,2427.9,0.59471146]
[1730787570028,7.90631,2428.0,2427.9,0.04471146]
[1730787570430,4.11929,2427.6,2427.5,1.70917212]
[1730787570613,4.11929,2427.6,2427.5,2.54476892]
[1730787570820,4.11929,2427.6,2427.5,2.58966334]
[1730787571014,4.11929,2427.6,2427.5,2.58965985]
[1730787571230,4.11929,2427.6,2427.5,1.75407748]
[1730787571434,4.11929,2427.6,2427.5,2.62545151]
[1730787571729,4.11929,2427.6,2427.5,3.13966114]
[1730787573632,4.11929,2427.6,2427.5,3.13981445]
[1730787573830,4.11929,2427.6,2427.5,0.88064233]
[1730787573831,7.93279,2427.6,2427.5,0.88064233]
[1730787574025,8.756634,2427.6,2427.5,0.04490536]
[1730787574334,4.1198,2427.3,2427.2,1.70917212]
[1730787574635,4.1198,2427.3,2427.2,2.54493153]
[1730787574834,4.11963,2427.4,2427.2,2.54493153]
[1730787575009,4.11963,2427.4,2427.3,0.32144296]
[1730787575206,7.11954,2427.5,2427.4,1.054]
[1730787575526,3.0,2427.5,2427.4,3.08461508]
[1730787576089,3.0,2427.5,2427.4,0.32144296]
[1730787576090,7.88296,2427.5,2427.4,0.32144296]
[1730787576292,9.083197,2427.5,2427.4,0.32144296]
[1730787576504,9.083197,2427.5,2427.4,0.04518098]
[1730787576745,4.1198,2427.3,2427.2,1.70917212]
[1730787576916,4.1198,2427.3,2427.2,2.03057447]
[1730787577124,4.11966,2427.4,2427.2,2.54481491]
[1730787577321,4.11966,2427.4,2427.3,0.87140235]
[1730787580658,4.11966,2427.4,2427.3,0.55]
[1730787580948,4.11966,2427.4,2427.3,0.87408484]
[1730787581247,7.88296,2427.5,2427.3,2.03325696]
[1730787581417,7.11946,2427.5,2427.3,1.70917212]
[1730787582011,7.11946,2427.5,2427.4,0.32409216]
[1730787582407,7.11946,2427.5,2427.4,0.87409216]
[1730787582615,7.11946,2427.5,2427.4,0.55]
[1730787582906,7.11946,2427.5,2427.4,0.87409286]
[1730787583553,7.11929,2427.6,2427.5,0.55]
[1730787583844,7.11929,2427.6,2427.5,2.58326536]
[1730787584652,7.11929,2427.6,2427.5,0.87409324]
[1730787584852,7.11929,2427.6,2427.3,2.21317212]
[1730787584853,7.11949,2427.5,2427.4,0.55]
[1730787585148,7.11949,2427.5,2427.4,0.87413268]
[1730787585526,7.92059,2427.5,2427.4,2.5833048]
[1730787586120,7.92059,2427.5,2427.4,2.25917212]
[1730787586449,7.11949,2427.5,2427.4,2.58335328]
[1730787586951,3.0,2427.5,2427.4,3.08735328]
[1730787587322,3.0,2427.5,2427.4,3.60626239]
[1730787588851,4.11909,2427.8,2427.4,3.60626239]
[1730787589041,4.11909,2427.8,2427.6,1.70917212]
[1730787589042,4.11913,2427.7,2427.6,1.70917212]
[1730787589212,4.11913,2427.7,2427.6,2.58335328]
[1730787589213,7.11913,2427.7,2427.6,2.58335328]
[1730787590243,7.11913,2427.7,2427.6,2.25917212]
[1730787590443,7.11913,2427.7,2427.6,2.58361773]
[1730787591777,7.11913,2427.7,2427.6,2.62770922]
[1730787594064,7.11913,2427.7,2427.6,2.30326361]
[1730787594574,7.11913,2427.7,2427.6,2.62774565]
[1730787595440,7.11913,2427.7,2427.6,2.62777262]
[1730787596429,3.0,2427.7,2427.6,2.62777262]
[1730787597370,3.0,2427.7,2427.6,3.14708944]
[1730787597531,3.0,2427.7,2427.6,2.62777262]
[1730787597734,3.0,2427.7,2427.6,3.14709182]
[1730787597933,3.0,2427.7,2427.6,3.14715268]
[1730787598273,0.7658,2428.0,2427.6,3.14715268]
[1730787598274,3.0,2427.9,2427.6,3.14715268]
[1730787598475,4.11893,2427.9,2427.8,2.25917212]
[1730787598767,4.11893,2427.9,2427.8,2.62770086]
[1730787599725,7.11893,2427.9,2427.8,2.62770086]
[1730787600484,7.11893,2427.9,2427.8,0.91852874]
[1730787600634,9.074084,2427.9,2427.8,0.91852874]
[1730787600831,9.074084,2427.9,2427.8,0.87456988]
[1730787601039,4.11912,2427.7,2427.6,0.55]
[1730787601377,4.11912,2427.7,2427.6,1.39415797]
[1730787602542,4.11912,2427.7,2427.6,0.8746733]
[1730787603133,4.11912,2427.7,2427.6,1.39419121]
[1730787603766,3.0,2427.8,2427.7,0.504]
[1730787604081,3.0,2427.8,2427.7,3.60736333]
[1730787604578,3.0,2428.0,2427.8,0.55]
[1730787604785,3.0,2428.0,2427.9,2.58384542]
[1730787605977,4.11823,2428.3,2428.0,0.55]
[1730787605978,7.11839,2428.2,2428.0,0.55]
[1730787606146,7.11839,2428.2,2428.1,2.58384542]
[1730787606567,7.11839,2428.2,2428.1,2.62726357]
[1730787607175,3.0,2428.2,2428.1,2.62726357]
[1730787607711,7.11827,2428.2,2428.1,3.14628734]
[1730787608066,7.11827,2428.2,2428.1,2.30259027]
[1730787608275,7.11827,2428.2,2428.1,2.62697785]
[1730787610259,3.0,2428.2,2428.1,2.62697785]
[1730787610708,7.11827,2428.2,2428.1,2.62697785]
[1730787610903,3.0,2428.2,2428.1,2.62697785]
[1730787612582,7.11827,2428.2,2428.1,2.62697785]
[1730787613207,3.0,2428.2,2428.1,2.62697785]
[1730787614283,7.11793,2428.4,2428.2,0.55]
[1730787614478,7.11793,2428.4,2428.3,1.70917212]
[1730787614726,7.11793,2428.4,2428.3,2.25917212]
[1730787615028,7.11793,2428.4,2428.3,2.3020701]
[1730787618840,3.0,2428.4,2428.3,2.76317212]
[1730787619057,3.0,2428.4,2428.3,3.12995163]
[1730787619233,3.0,2428.4,2428.3,2.8060701]
[1730787619601,4.11752,2428.7,2428.3,3.12992315]
[1730787619802,4.11726,2428.8,2428.7,0.55]
[1730787620037,4.11711,2428.9,2428.7,0.55]